[Event "Late-Titled-Tuesday-Blitz-April-23-2024"]
[Site "Chess.com"]
[Date "2024.04.23"]
[Round "5"]
[White "katharinareinecke"]
[Black "crosky"]
[Result "0-1"]
[WhiteElo "2050"]
[BlackElo "2354"]
[TimeControl "180+1"]
[EndTime "14:56:40 PDT"]
[Termination "crosky won by resignation"]

1. e4 {[%clk 0:02:57.4]} 1... c5 {[%clk 0:02:57.2]} 2. Nf3 {[%clk 0:02:55.9]}
2... e6 {[%clk 0:02:57.5]} 3. g3 {[%clk 0:02:50.2]} 3... d5 {[%clk 0:02:55.7]}
4. exd5 {[%clk 0:02:43]} 4... exd5 {[%clk 0:02:56.6]} 5. Bg2 {[%clk 0:02:43]}
5... Nf6 {[%clk 0:02:55.9]} 6. O-O {[%clk 0:02:42.5]} 6... d4 {[%clk 0:02:50.9]}
7. d3 {[%clk 0:02:38.2]} 7... Be7 {[%clk 0:02:49.7]} 8. Re1 {[%clk 0:02:36.6]}
8... O-O {[%clk 0:02:49.6]} 9. Nbd2 {[%clk 0:02:35.8]} 9... Nc6 {[%clk
0:02:49.3]} 10. Ng5 {[%clk 0:02:26.7]} 10... Bg4 {[%clk 0:02:35.3]} 11. f3
{[%clk 0:02:17.3]} 11... Bf5 {[%clk 0:02:35]} 12. Nge4 {[%clk 0:02:15.1]} 12...
Rc8 {[%clk 0:02:34.5]} 13. Nxf6+ {[%clk 0:02:11.8]} 13... Bxf6 {[%clk
0:02:34.6]} 14. Ne4 {[%clk 0:02:12]} 14... Bxe4 {[%clk 0:02:30.9]} 15. Rxe4
{[%clk 0:02:02.3]} 15... Qd7 {[%clk 0:02:25.1]} 16. Bd2 {[%clk 0:01:51.3]} 16...
Rfe8 {[%clk 0:02:25.1]} 17. Qf1 {[%clk 0:01:40.6]} 17... Rxe4 {[%clk 0:02:19.6]}
18. fxe4 {[%clk 0:01:40.7]} 18... Ne5 {[%clk 0:02:15.1]} 19. Qf5 {[%clk
0:01:33.4]} 19... Qxf5 {[%clk 0:01:59.9]} 20. exf5 {[%clk 0:01:33.2]} 20... b5
{[%clk 0:02:00.8]} 21. Re1 {[%clk 0:01:29.6]} 21... c4 {[%clk 0:01:58.3]} 22.
Be4 {[%clk 0:01:23.5]} 22... h6 {[%clk 0:01:45.9]} 23. Bf4 {[%clk 0:01:19.3]}
23... cxd3 {[%clk 0:01:28.7]} 24. cxd3 {[%clk 0:01:16.3]} 24... Rc2 {[%clk
0:01:11]} 25. Bxe5 {[%clk 0:00:59.2]} 25... Bxe5 {[%clk 0:01:11]} 26. Rb1 {[%clk
0:00:58.9]} 26... a5 {[%clk 0:01:02.2]} 27. a3 {[%clk 0:00:56.2]} 27... Kf8
{[%clk 0:00:51.1]} 28. b4 {[%clk 0:00:55.5]} 28... a4 {[%clk 0:00:35.4]} 29. Ra1
{[%clk 0:00:52.9]} 29... Ke7 {[%clk 0:00:34.4]} 30. g4 {[%clk 0:00:49.6]} 30...
Bxh2+ {[%clk 0:00:31.2]} 31. Kf1 {[%clk 0:00:46.9]} 31... Kd6 {[%clk 0:00:24.2]}
32. Re1 {[%clk 0:00:38.3]} 32... Rc3 {[%clk 0:00:20.7]} 33. Ra1 {[%clk
0:00:37.8]} 33... Bf4 {[%clk 0:00:19.7]} 34. Ke2 {[%clk 0:00:37.2]} 34... Bc1
{[%clk 0:00:17.2]} 35. Kf3 {[%clk 0:00:36.7]} 35... Bxa3 {[%clk 0:00:16.3]} 36.
Re1 {[%clk 0:00:33.4]} 36... Bxb4 {[%clk 0:00:16.5]} 37. Re2 {[%clk 0:00:33.3]}
37... a3 {[%clk 0:00:16.1]} 38. Bb7 {[%clk 0:00:30]} 38... Bc5 {[%clk 0:00:15]}
39. Kf4 {[%clk 0:00:24.3]} 39... Rxd3 {[%clk 0:00:13]} 40. g5 {[%clk 0:00:23.7]}
40... hxg5+ {[%clk 0:00:12.2]} 41. Kxg5 {[%clk 0:00:23.7]} 41... Re3 {[%clk
0:00:13.1]} 42. Rd2 {[%clk 0:00:21.4]} 42... b4 {[%clk 0:00:13.4]} 43. f6 {[%clk
0:00:18.5]} 43... gxf6+ {[%clk 0:00:12.5]} 44. Kxf6 {[%clk 0:00:19]} 44... b3
{[%clk 0:00:13.4]} 45. Kxf7 {[%clk 0:00:17]} 45... a2 {[%clk 0:00:13.9]} 0-1

[Event "Late-Titled-Tuesday-Blitz-April-23-2024"]
[Site "Chess.com"]
[Date "2024.04.23"]
[Round "5"]
[White "SpeedofLight0"]
[Black "ellatambien"]
[Result "0-1"]
[WhiteElo "3046"]
[BlackElo "2726"]
[TimeControl "180+1"]
[EndTime "14:56:41 PDT"]
[Termination "ellatambien won by resignation"]

1. d4 {[%clk 0:03:00.9]} 1... Nf6 {[%clk 0:02:55.2]} 2. Nc3 {[%clk 0:03:01.6]}
2... d5 {[%clk 0:02:54.9]} 3. Bf4 {[%clk 0:03:02.3]} 3... a6 {[%clk 0:02:55.2]}
4. e3 {[%clk 0:03:02.6]} 4... b5 {[%clk 0:02:55]} 5. h4 {[%clk 0:03:00.8]} 5...
Bb7 {[%clk 0:02:42.9]} 6. g4 {[%clk 0:03:00.6]} 6... e6 {[%clk 0:02:34.8]} 7. g5
{[%clk 0:03:00.6]} 7... Ne4 {[%clk 0:02:32.6]} 8. Nxe4 {[%clk 0:02:57]} 8...
dxe4 {[%clk 0:02:32.6]} 9. Ne2 {[%clk 0:02:54.8]} 9... Bd6 {[%clk 0:02:29.3]}
10. Bxd6 {[%clk 0:02:29.4]} 10... cxd6 {[%clk 0:02:22.8]} 11. Ng3 {[%clk
0:02:30.3]} 11... Nd7 {[%clk 0:02:17.7]} 12. Qg4 {[%clk 0:02:23.9]} 12... d5
{[%clk 0:02:01.8]} 13. h5 {[%clk 0:02:21.7]} 13... Qe7 {[%clk 0:01:51.5]} 14.
O-O-O {[%clk 0:02:20.6]} 14... Rc8 {[%clk 0:01:47.2]} 15. Bh3 {[%clk 0:02:06.7]}
15... Nb6 {[%clk 0:01:43.9]} 16. Qf4 {[%clk 0:02:02.2]} 16... Nc4 {[%clk
0:01:41.7]} 17. Bf1 {[%clk 0:02:02.3]} 17... Nxb2 {[%clk 0:01:22.6]} 18. Bh3
{[%clk 0:00:29.2]} 18... Qa3 {[%clk 0:01:07.7]} 19. Kd2 {[%clk 0:00:29.1]} 19...
Qc3+ {[%clk 0:01:02.6]} 20. Ke2 {[%clk 0:00:29.5]} 20... Qxc2+ {[%clk
0:00:59.6]} 21. Kf1 {[%clk 0:00:26.8]} 21... Qxd1+ {[%clk 0:00:57]} 22. Kg2
{[%clk 0:00:27.3]} 22... Qf3+ {[%clk 0:00:56.8]} 23. Qxf3 {[%clk 0:00:27.5]}
23... exf3+ {[%clk 0:00:57.3]} 24. Kxf3 {[%clk 0:00:28.4]} 24... Rc2 {[%clk
0:00:53.5]} 25. Ne2 {[%clk 0:00:23.5]} 25... Nc4 {[%clk 0:00:49.9]} 26. Nf4
{[%clk 0:00:18.8]} 26... Nd2+ {[%clk 0:00:47.8]} 27. Kg4 {[%clk 0:00:19.3]}
27... Ne4 {[%clk 0:00:47.4]} 28. Rf1 {[%clk 0:00:18.7]} 28... Nxf2+ {[%clk
0:00:45.8]} 29. Kh4 {[%clk 0:00:19.3]} 29... Nxh3 {[%clk 0:00:46]} 30. Nxh3
{[%clk 0:00:20.2]} 30... O-O {[%clk 0:00:45.1]} 31. h6 {[%clk 0:00:20.4]} 31...
f6 {[%clk 0:00:43]} 32. Rg1 {[%clk 0:00:17]} 32... fxg5+ {[%clk 0:00:40.8]} 33.
Rxg5 {[%clk 0:00:17.9]} 33... g6 {[%clk 0:00:41.1]} 34. Nf4 {[%clk 0:00:18.2]}
34... Rh2+ {[%clk 0:00:37.5]} 35. Kg3 {[%clk 0:00:17.9]} 35... Rxh6 {[%clk
0:00:37.1]} 36. Nxe6 {[%clk 0:00:18.3]} 36... Re8 {[%clk 0:00:32.6]} 37. Nc5
{[%clk 0:00:18.1]} 37... Bc6 {[%clk 0:00:29.4]} 38. Nxa6 {[%clk 0:00:15.9]}
38... Rxe3+ {[%clk 0:00:27.4]} 39. Kf2 {[%clk 0:00:16.5]} 39... Ra3 {[%clk
0:00:24.9]} 40. Nb4 {[%clk 0:00:16.6]} 40... Bb7 {[%clk 0:00:21.2]} 41. Kg2
{[%clk 0:00:15.1]} 41... Rh4 {[%clk 0:00:20.3]} 42. Nc2 {[%clk 0:00:09.8]} 42...
Rxa2 {[%clk 0:00:19.6]} 43. Kg3 {[%clk 0:00:10.5]} 43... Re4 {[%clk 0:00:18.8]}
44. Nb4 {[%clk 0:00:10]} 44... Ra3+ {[%clk 0:00:17.7]} 45. Kf2 {[%clk
0:00:10.5]} 45... Rxd4 {[%clk 0:00:17.3]} 46. Nc2 {[%clk 0:00:11.1]} 46... Rd2+
{[%clk 0:00:17.5]} 47. Ke1 {[%clk 0:00:11.1]} 47... Rxc2 {[%clk 0:00:18.1]} 48.
Rxg6+ {[%clk 0:00:11.8]} 48... hxg6 {[%clk 0:00:17.6]} 0-1

[Event "Late-Titled-Tuesday-Blitz-April-23-2024"]
[Site "Chess.com"]
[Date "2024.04.23"]
[Round "5"]
[White "venturov"]
[Black "AradNazari"]
[Result "1-0"]
[WhiteElo "2516"]
[BlackElo "2742"]
[TimeControl "180+1"]
[EndTime "14:56:44 PDT"]
[Termination "venturov won by resignation"]

1. e4 {[%clk 0:03:00.9]} 1... c5 {[%clk 0:02:48.1]} 2. Nf3 {[%clk 0:03:00.7]}
2... d6 {[%clk 0:02:48.5]} 3. d4 {[%clk 0:03:00.3]} 3... cxd4 {[%clk 0:02:49.1]}
4. Nxd4 {[%clk 0:03:01.2]} 4... Nf6 {[%clk 0:02:49.8]} 5. Nc3 {[%clk 0:03:01.6]}
5... a6 {[%clk 0:02:50.5]} 6. Bc4 {[%clk 0:03:01.9]} 6... e6 {[%clk 0:02:48.7]}
7. O-O {[%clk 0:03:01.3]} 7... Be7 {[%clk 0:02:43.5]} 8. Re1 {[%clk 0:03:01.2]}
8... b5 {[%clk 0:02:44]} 9. Bb3 {[%clk 0:03:01.6]} 9... Qc7 {[%clk 0:02:43]} 10.
Qf3 {[%clk 0:02:56.4]} 10... Qb7 {[%clk 0:02:31.4]} 11. Qg3 {[%clk 0:02:25.8]}
11... Nh5 {[%clk 0:02:09.1]} 12. Qg4 {[%clk 0:02:20.7]} 12... g6 {[%clk
0:02:09.4]} 13. Bh6 {[%clk 0:02:09.6]} 13... b4 {[%clk 0:01:48]} 14. Na4 {[%clk
0:01:55.6]} 14... Nc6 {[%clk 0:01:22.9]} 15. Nxc6 {[%clk 0:01:45.9]} 15... Qxc6
{[%clk 0:01:23.8]} 16. Qf3 {[%clk 0:01:40.6]} 16... Bb7 {[%clk 0:00:59.4]} 17.
g4 {[%clk 0:01:21.1]} 17... Nf6 {[%clk 0:00:57.7]} 18. Bg7 {[%clk 0:01:21.4]}
18... Nxe4 {[%clk 0:00:26.6]} 19. Bxh8 {[%clk 0:01:20.6]} 19... Kd7 {[%clk
0:00:22.6]} 20. Bd4 {[%clk 0:01:17.9]} 20... f5 {[%clk 0:00:23.2]} 21. Nb6+
{[%clk 0:01:14.3]} 21... Kc7 {[%clk 0:00:20]} 22. Ba4 {[%clk 0:01:06.7]} 22...
Ng5 {[%clk 0:00:10.3]} 23. Nxa8+ {[%clk 0:00:58.6]} 23... Bxa8 {[%clk
0:00:10.5]} 24. Bxc6 {[%clk 0:00:56.7]} 24... Bxc6 {[%clk 0:00:11.2]} 25. Qxc6+
{[%clk 0:00:48.9]} 25... Kxc6 {[%clk 0:00:12.1]} 26. Be3 {[%clk 0:00:41.3]}
26... Nf3+ {[%clk 0:00:11.6]} 27. Kg2 {[%clk 0:00:40.9]} 27... fxg4 {[%clk
0:00:12.3]} 28. h3 {[%clk 0:00:36.2]} 28... Nxe1+ {[%clk 0:00:06.4]} 29. Rxe1
{[%clk 0:00:36]} 29... gxh3+ {[%clk 0:00:07.2]} 30. Kxh3 {[%clk 0:00:36.7]}
30... Bf6 {[%clk 0:00:07.8]} 31. Bc1 {[%clk 0:00:35.2]} 31... e5 {[%clk
0:00:07.7]} 32. Kg4 {[%clk 0:00:35.2]} 32... d5 {[%clk 0:00:05.5]} 33. Bg5
{[%clk 0:00:35]} 33... h5+ {[%clk 0:00:05.8]} 34. Kh4 {[%clk 0:00:34.9]} 34...
Bg7 {[%clk 0:00:06.4]} 35. Bd2 {[%clk 0:00:29.3]} 35... a5 {[%clk 0:00:06.4]}
36. Kg5 {[%clk 0:00:29.7]} 36... e4 {[%clk 0:00:06.6]} 37. Bc1 {[%clk
0:00:28.6]} 37... Bd4 {[%clk 0:00:06.5]} 38. Rf1 {[%clk 0:00:24.8]} 38... Kc5
{[%clk 0:00:06.1]} 39. Kxg6 {[%clk 0:00:24.8]} 39... h4 {[%clk 0:00:06.6]} 40.
f4 {[%clk 0:00:22.8]} 40... exf3 {[%clk 0:00:03]} 41. Rxf3 {[%clk 0:00:23.2]}
41... a4 {[%clk 0:00:02.6]} 42. Be3 {[%clk 0:00:23]} 42... Bxe3 {[%clk
0:00:02.2]} 43. Rxe3 {[%clk 0:00:23.9]} 43... d4 {[%clk 0:00:01.8]} 44. Rh3
{[%clk 0:00:23.9]} 44... Kc4 {[%clk 0:00:02.5]} 45. b3+ {[%clk 0:00:24]} 45...
axb3 {[%clk 0:00:02.6]} 46. axb3+ {[%clk 0:00:24.9]} 1-0

[Event "Late-Titled-Tuesday-Blitz-April-23-2024"]
[Site "Chess.com"]
[Date "2024.04.23"]
[Round "5"]
[White "FlemingA"]
[Black "dolynachess"]
[Result "1-0"]
[WhiteElo "2449"]
[BlackElo "2540"]
[TimeControl "180+1"]
[EndTime "14:56:44 PDT"]
[Termination "FlemingA won on time"]

1. e4 {[%clk 0:02:43.4]} 1... c5 {[%clk 0:02:59.1]} 2. a3 {[%clk 0:02:35.9]}
2... g6 {[%clk 0:02:57]} 3. b4 {[%clk 0:02:35.6]} 3... Bg7 {[%clk 0:02:52.9]} 4.
c3 {[%clk 0:02:35.3]} 4... b6 {[%clk 0:02:50.5]} 5. g3 {[%clk 0:02:34.4]} 5...
Bb7 {[%clk 0:02:49.3]} 6. Bg2 {[%clk 0:02:34.8]} 6... Nf6 {[%clk 0:02:43]} 7. d3
{[%clk 0:02:33.9]} 7... O-O {[%clk 0:02:41.2]} 8. Ne2 {[%clk 0:02:33.4]} 8... d6
{[%clk 0:02:36.6]} 9. O-O {[%clk 0:02:33.5]} 9... Qc7 {[%clk 0:02:32.7]} 10. Nd2
{[%clk 0:02:26.6]} 10... Nbd7 {[%clk 0:02:31.1]} 11. Bb2 {[%clk 0:02:22.5]}
11... Rfc8 {[%clk 0:02:30]} 12. Rc1 {[%clk 0:02:22.6]} 12... a5 {[%clk
0:02:24.8]} 13. h3 {[%clk 0:02:20]} 13... axb4 {[%clk 0:02:23.8]} 14. cxb4
{[%clk 0:02:20.5]} 14... Nxe4 {[%clk 0:02:11.2]} 15. Bxg7 {[%clk 0:02:16.5]}
15... Nxd2 {[%clk 0:02:10.7]} 16. Qxd2 {[%clk 0:02:16.4]} 16... Kxg7 {[%clk
0:02:10.3]} 17. Nf4 {[%clk 0:02:05.5]} 17... Bxg2 {[%clk 0:01:57.8]} 18. Kxg2
{[%clk 0:02:05.1]} 18... Qb7+ {[%clk 0:01:57.9]} 19. Kg1 {[%clk 0:02:04.8]}
19... Ne5 {[%clk 0:01:56.8]} 20. Qb2 {[%clk 0:01:59.9]} 20... Kg8 {[%clk
0:01:49.4]} 21. Rfd1 {[%clk 0:01:53.4]} 21... Nf3+ {[%clk 0:01:39]} 22. Kf1
{[%clk 0:01:53.2]} 22... Nd4 {[%clk 0:01:39.5]} 23. Kg1 {[%clk 0:01:43.6]} 23...
Qf3 {[%clk 0:01:34.5]} 24. Re1 {[%clk 0:01:26.3]} 24... Ra7 {[%clk 0:01:26.2]}
25. Re3 {[%clk 0:01:24.7]} 25... Qa8 {[%clk 0:01:17.9]} 26. Re4 {[%clk
0:00:55.4]} 26... e5 {[%clk 0:00:59.5]} 27. Ne2 {[%clk 0:00:49.7]} 27... Nf3+
{[%clk 0:00:43.5]} 28. Kf1 {[%clk 0:00:39.7]} 28... Ng5 {[%clk 0:00:41.3]} 29.
Nc3 {[%clk 0:00:15.4]} 29... Rxa3 {[%clk 0:00:36.6]} 30. Qd2 {[%clk 0:00:13.4]}
30... Nxe4 {[%clk 0:00:28.2]} 31. Nxe4 {[%clk 0:00:13.5]} 31... Qb8 {[%clk
0:00:07.9]} 32. Qh6 {[%clk 0:00:11.4]} 32... f5 {[%clk 0:00:01.9]} 33. Nf6+
{[%clk 0:00:07.1]} 33... Kf7 {[%clk 0:00:02.2]} 34. Nxh7 {[%clk 0:00:05.7]}
34... Rh8 {[%clk 0:00:02.1]} 35. Ng5+ {[%clk 0:00:06.4]} 35... Kf6 {[%clk
0:00:02.2]} 36. Nh7+ {[%clk 0:00:06.2]} 36... Kf7 {[%clk 0:00:01.1]} 37. Ng5+
{[%clk 0:00:06.5]} 37... Kf6 {[%clk 0:00:01.6]} 38. Nh7+ {[%clk 0:00:07]} 1-0

[Event "Late-Titled-Tuesday-Blitz-April-23-2024"]
[Site "Chess.com"]
[Date "2024.04.23"]
[Round "5"]
[White "Arteler"]
[Black "PNEPaul"]
[Result "0-1"]
[WhiteElo "2281"]
[BlackElo "1925"]
[TimeControl "180+1"]
[EndTime "14:56:45 PDT"]
[Termination "PNEPaul won on time"]

1. e4 {[%clk 0:03:00.9]} 1... e5 {[%clk 0:02:51.5]} 2. Nf3 {[%clk 0:02:59.8]}
2... Nc6 {[%clk 0:02:51.5]} 3. d4 {[%clk 0:02:59.7]} 3... exd4 {[%clk
0:02:51.1]} 4. Nxd4 {[%clk 0:02:59.8]} 4... Be7 {[%clk 0:02:51.1]} 5. Be3 {[%clk
0:02:55.7]} 5... d6 {[%clk 0:02:50.1]} 6. a3 {[%clk 0:02:52.1]} 6... Nf6 {[%clk
0:02:49.9]} 7. Nc3 {[%clk 0:02:50.6]} 7... O-O {[%clk 0:02:49.3]} 8. Bc4 {[%clk
0:02:49.9]} 8... Ne5 {[%clk 0:02:49]} 9. Ba2 {[%clk 0:02:48.9]} 9... c5 {[%clk
0:02:48.8]} 10. Nde2 {[%clk 0:02:37.2]} 10... Be6 {[%clk 0:02:40.7]} 11. Bxe6
{[%clk 0:02:28.3]} 11... fxe6 {[%clk 0:02:40]} 12. O-O {[%clk 0:02:28.5]} 12...
d5 {[%clk 0:02:26.6]} 13. exd5 {[%clk 0:02:25]} 13... exd5 {[%clk 0:02:26.1]}
14. Bf4 {[%clk 0:02:12.6]} 14... Ng6 {[%clk 0:02:21.5]} 15. Bg3 {[%clk
0:02:05.5]} 15... d4 {[%clk 0:02:20.4]} 16. Nb1 {[%clk 0:01:48.1]} 16... Ne4
{[%clk 0:02:11.7]} 17. c3 {[%clk 0:01:42.9]} 17... Nxg3 {[%clk 0:02:09]} 18.
Qb3+ {[%clk 0:01:35.9]} 18... Kh8 {[%clk 0:02:07.3]} 19. Nxg3 {[%clk 0:01:35.8]}
19... d3 {[%clk 0:01:33.2]} 20. Nd2 {[%clk 0:01:32.1]} 20... Nf4 {[%clk
0:01:25.1]} 21. Rad1 {[%clk 0:01:22.4]} 21... Ne2+ {[%clk 0:01:23.7]} 22. Kh1
{[%clk 0:01:20.9]} 22... Nxg3+ {[%clk 0:01:22.7]} 23. fxg3 {[%clk 0:01:19.8]}
23... Rxf1+ {[%clk 0:01:22]} 24. Rxf1 {[%clk 0:01:20.7]} 24... Bf6 {[%clk
0:00:47.3]} 25. Qc4 {[%clk 0:01:09.3]} 25... b6 {[%clk 0:00:44.7]} 26. Rf3
{[%clk 0:00:59]} 26... Qe7 {[%clk 0:00:44.4]} 27. Qxd3 {[%clk 0:00:49.4]} 27...
Rd8 {[%clk 0:00:42.2]} 28. Qc2 {[%clk 0:00:32.4]} 28... Qe1+ {[%clk 0:00:29.4]}
29. Nf1 {[%clk 0:00:27.8]} 29... Rd1 {[%clk 0:00:27.9]} 30. Qf2 {[%clk
0:00:17.5]} 30... Qe6 {[%clk 0:00:19.6]} 31. Re3 {[%clk 0:00:13.3]} 31... Qf7
{[%clk 0:00:15.4]} 32. Qe2 {[%clk 0:00:11.6]} 32... Rd8 {[%clk 0:00:14.6]} 33.
h3 {[%clk 0:00:08.6]} 33... h6 {[%clk 0:00:14.3]} 34. Kh2 {[%clk 0:00:08.8]}
34... Rf8 {[%clk 0:00:12.4]} 35. Nd2 {[%clk 0:00:05.8]} 35... Bg5 {[%clk
0:00:11.6]} 36. Rf3 {[%clk 0:00:05.5]} 36... Qe7 {[%clk 0:00:10.2]} 37. Rxf8+
{[%clk 0:00:05.1]} 37... Qxf8 {[%clk 0:00:08.3]} 38. Nf3 {[%clk 0:00:05]} 38...
Bf6 {[%clk 0:00:05.9]} 39. h4 {[%clk 0:00:05]} 39... Qf7 {[%clk 0:00:04.9]} 0-1

[Event "Late-Titled-Tuesday-Blitz-April-23-2024"]
[Site "Chess.com"]
[Date "2024.04.23"]
[Round "5"]
[White "GelmanAlexander"]
[Black "Zhigalko_Sergei"]
[Result "1/2-1/2"]
[WhiteElo "2628"]
[BlackElo "2896"]
[TimeControl "180+1"]
[EndTime "14:56:49 PDT"]
[Termination "Game drawn by repetition"]

1. d4 {[%clk 0:03:00.9]} 1... Nf6 {[%clk 0:02:58.6]} 2. Nc3 {[%clk 0:03:01.2]}
2... d5 {[%clk 0:02:58.6]} 3. Bf4 {[%clk 0:03:01.7]} 3... e6 {[%clk 0:02:52.8]}
4. Nb5 {[%clk 0:03:01.6]} 4... Na6 {[%clk 0:02:53.2]} 5. e3 {[%clk 0:03:02]}
5... Be7 {[%clk 0:02:51.1]} 6. g4 {[%clk 0:03:01.9]} 6... O-O {[%clk 0:02:50.4]}
7. g5 {[%clk 0:03:02]} 7... Ne4 {[%clk 0:02:50.2]} 8. f3 {[%clk 0:03:02.5]} 8...
Nd6 {[%clk 0:02:48.3]} 9. h4 {[%clk 0:03:02.7]} 9... c5 {[%clk 0:02:31.2]} 10.
c3 {[%clk 0:03:02.7]} 10... Nc7 {[%clk 0:02:25]} 11. Nxd6 {[%clk 0:03:00.2]}
11... Bxd6 {[%clk 0:02:25.1]} 12. Bxd6 {[%clk 0:03:00.7]} 12... Qxd6 {[%clk
0:02:26]} 13. f4 {[%clk 0:03:00.2]} 13... b5 {[%clk 0:02:12.1]} 14. Nf3 {[%clk
0:02:51.6]} 14... a5 {[%clk 0:02:06.5]} 15. h5 {[%clk 0:02:45.7]} 15... b4
{[%clk 0:02:03.1]} 16. h6 {[%clk 0:02:41.1]} 16... g6 {[%clk 0:02:02.6]} 17. Ne5
{[%clk 0:02:40.3]} 17... Ba6 {[%clk 0:01:57.6]} 18. Bxa6 {[%clk 0:02:39.5]}
18... Rxa6 {[%clk 0:01:49.9]} 19. Kf2 {[%clk 0:02:34.6]} 19... Rc8 {[%clk
0:01:43.9]} 20. dxc5 {[%clk 0:02:27.7]} 20... Qxc5 {[%clk 0:01:41.1]} 21. Nd7
{[%clk 0:02:26.7]} 21... Qa7 {[%clk 0:01:31.9]} 22. cxb4 {[%clk 0:02:18.6]}
22... Nb5 {[%clk 0:01:25.3]} 23. Nf6+ {[%clk 0:02:12.9]} 23... Kh8 {[%clk
0:01:23.8]} 24. Rc1 {[%clk 0:02:06]} 24... Rac6 {[%clk 0:01:22.4]} 25. Rxc6
{[%clk 0:01:52]} 25... Rxc6 {[%clk 0:01:23.3]} 26. a4 {[%clk 0:01:39.9]} 26...
Nd6 {[%clk 0:01:16.8]} 27. b5 {[%clk 0:01:35.8]} 27... Rc4 {[%clk 0:01:14.9]}
28. Kf3 {[%clk 0:01:02.5]} 28... Nf5 {[%clk 0:01:10]} 29. Qd3 {[%clk 0:00:55.2]}
29... Qc7 {[%clk 0:00:50.5]} 30. Rd1 {[%clk 0:00:48.3]} 30... Nh4+ {[%clk
0:00:21.8]} 31. Kg4 {[%clk 0:00:34.7]} 31... Nf5 {[%clk 0:00:22]} 32. e4 {[%clk
0:00:27.5]} 32... Rd4 {[%clk 0:00:04.2]} 33. Qxd4 {[%clk 0:00:16.4]} 33... Nxd4
{[%clk 0:00:05.1]} 34. Rxd4 {[%clk 0:00:16.8]} 34... Qc1 {[%clk 0:00:05.3]} 35.
Rd3 {[%clk 0:00:08.5]} 35... Qxb2 {[%clk 0:00:05.5]} 36. exd5 {[%clk 0:00:06.6]}
36... Qc2 {[%clk 0:00:05]} 37. Re3 {[%clk 0:00:03.6]} 37... Qd1+ {[%clk
0:00:05.2]} 38. Kg3 {[%clk 0:00:03.8]} 38... Qd4 {[%clk 0:00:04.1]} 39. Kf3
{[%clk 0:00:03.7]} 39... Qd1+ {[%clk 0:00:04.1]} 40. Kg3 {[%clk 0:00:04]} 40...
Qd2 {[%clk 0:00:03.7]} 41. Kf3 {[%clk 0:00:04.3]} 41... Qd1+ {[%clk 0:00:04.2]}
42. Kg3 {[%clk 0:00:04.9]} 1/2-1/2

[Event "Late-Titled-Tuesday-Blitz-April-23-2024"]
[Site "Chess.com"]
[Date "2024.04.23"]
[Round "5"]
[White "ural58"]
[Black "Sokoloco"]
[Result "0-1"]
[WhiteElo "2555"]
[BlackElo "2764"]
[TimeControl "180+1"]
[EndTime "14:56:50 PDT"]
[Termination "Sokoloco won by checkmate"]

1. e4 {[%clk 0:02:20.7]} 1... d6 {[%clk 0:03:00.4]} 2. d4 {[%clk 0:02:20]} 2...
g6 {[%clk 0:03:01.2]} 3. Nc3 {[%clk 0:02:18.5]} 3... Bg7 {[%clk 0:03:01.8]} 4.
Nf3 {[%clk 0:02:17.3]} 4... a6 {[%clk 0:03:02.4]} 5. Be3 {[%clk 0:02:15.2]} 5...
b5 {[%clk 0:03:00.2]} 6. h4 {[%clk 0:02:12.1]} 6... Nf6 {[%clk 0:02:58.3]} 7.
Bd3 {[%clk 0:02:02]} 7... h6 {[%clk 0:02:45.5]} 8. e5 {[%clk 0:01:58.4]} 8...
Ng4 {[%clk 0:02:36.7]} 9. Be4 {[%clk 0:01:55.6]} 9... c6 {[%clk 0:02:36.9]} 10.
h5 {[%clk 0:01:39.4]} 10... g5 {[%clk 0:02:24.2]} 11. exd6 {[%clk 0:01:32.1]}
11... exd6 {[%clk 0:02:23.2]} 12. Qd3 {[%clk 0:01:30.2]} 12... Qf6 {[%clk
0:02:00.7]} 13. Nd2 {[%clk 0:01:15.5]} 13... d5 {[%clk 0:01:51.4]} 14. Bf3
{[%clk 0:01:14.3]} 14... O-O {[%clk 0:01:46.8]} 15. O-O-O {[%clk 0:01:13.5]}
15... Qd6 {[%clk 0:01:34.4]} 16. Bxg4 {[%clk 0:01:10.4]} 16... Bxg4 {[%clk
0:01:34.1]} 17. f3 {[%clk 0:01:10.3]} 17... Be6 {[%clk 0:01:31.8]} 18. g4 {[%clk
0:01:06.7]} 18... a5 {[%clk 0:01:25.2]} 19. Bg1 {[%clk 0:01:05.9]} 19... Na6
{[%clk 0:01:23.2]} 20. Bh2 {[%clk 0:01:05.7]} 20... Qd7 {[%clk 0:01:16.7]} 21.
f4 {[%clk 0:01:05.3]} 21... Bxg4 {[%clk 0:01:14.5]} 22. Rdg1 {[%clk 0:01:03.8]}
22... Bf5 {[%clk 0:01:13.9]} 23. Qg3 {[%clk 0:01:00.5]} 23... g4 {[%clk
0:01:11.8]} 24. Nf3 {[%clk 0:01:00.2]} 24... Nb4 {[%clk 0:01:00.2]} 25. Rg2
{[%clk 0:00:59.1]} 25... Nxc2 {[%clk 0:00:55.8]} 26. Ne5 {[%clk 0:00:28.7]}
26... Bxe5 {[%clk 0:00:54.2]} 27. fxe5 {[%clk 0:00:28.7]} 27... Nb4 {[%clk
0:00:40.6]} 28. Rd1 {[%clk 0:00:27.8]} 28... Qe6 {[%clk 0:00:34.1]} 29. Qe3
{[%clk 0:00:27.4]} 29... Kh7 {[%clk 0:00:32.8]} 30. Bf4 {[%clk 0:00:27.3]} 30...
Rg8 {[%clk 0:00:27.8]} 31. a3 {[%clk 0:00:27.5]} 31... Na6 {[%clk 0:00:21.5]}
32. Ne2 {[%clk 0:00:27.5]} 32... Be4 {[%clk 0:00:20.1]} 33. Rgg1 {[%clk
0:00:23.5]} 33... c5 {[%clk 0:00:15.9]} 34. Ng3 {[%clk 0:00:23.2]} 34... Bf3
{[%clk 0:00:16.2]} 35. Rdf1 {[%clk 0:00:21.6]} 35... cxd4 {[%clk 0:00:16]} 36.
Qd3+ {[%clk 0:00:21.7]} 36... Kh8 {[%clk 0:00:16.1]} 37. Kb1 {[%clk 0:00:21.8]}
37... Nc5 {[%clk 0:00:15.7]} 38. Qxd4 {[%clk 0:00:20.9]} 38... Ne4 {[%clk
0:00:16.1]} 39. Nxe4 {[%clk 0:00:18.7]} 39... dxe4 {[%clk 0:00:14.1]} 40. Qc5
{[%clk 0:00:16.5]} 40... Rgc8 {[%clk 0:00:13.1]} 41. Qxb5 {[%clk 0:00:16.3]}
41... Rab8 {[%clk 0:00:13.6]} 42. Qa4 {[%clk 0:00:16.2]} 42... Qb6 {[%clk
0:00:10.8]} 43. Bc1 {[%clk 0:00:12.7]} 43... Rxc1+ {[%clk 0:00:10.2]} 44. Kxc1
{[%clk 0:00:12.2]} 44... Qxb2# {[%clk 0:00:11.1]} 0-1